bitfinex/quotes_BTCUSD_20250212
["timestamp","ask_amount","ask_price","bid_price","bid_amount"]
[1739366405351,0.0001065,96427.0,96426.0,0.54851429]
[1739366405556,0.0001065,96427.0,96426.0,0.55820999]
[1739366405739,0.0001065,96427.0,96426.0,0.54320999]
[1739366406079,0.0001065,96427.0,96426.0,0.55820999]
[1739366406437,0.0001065,96427.0,96426.0,0.55120999]
[1739366406825,0.0001065,96427.0,96426.0,0.55820999]
[1739366411233,0.0001065,96427.0,96426.0,0.65109446]
[1739366412139,0.0001065,96427.0,96426.0,0.67186496]
[1739366412573,0.0001065,96427.0,96426.0,0.57196496]
[1739366413189,0.0001065,96427.0,96426.0,0.59496496]
[1739366413422,0.0001065,96427.0,96426.0,0.72786496]
[1739366413557,0.0001065,96427.0,96426.0,0.78106736]
[1739366413781,0.0001065,96427.0,96426.0,0.76039174]
[1739366413995,0.0001065,96427.0,96426.0,0.72808861]
[1739366414409,0.0001065,96427.0,96426.0,0.72108861]
[1739366414610,0.0001065,96427.0,96426.0,0.70608861]
[1739366414827,0.0001065,96427.0,96426.0,0.72108861]
[1739366415963,0.0001065,96427.0,96426.0,0.73127115]
[1739366416172,0.0001065,96427.0,96426.0,0.69898241]
[1739366416593,0.0001065,96427.0,96426.0,0.61792241]
[1739366416748,0.0001065,96427.0,96426.0,0.54368241]
[1739366416958,0.0001065,96427.0,96426.0,0.45779794]
[1739366421675,0.0001065,96427.0,96426.0,0.44883794]
[1739366423785,0.0001065,96427.0,96426.0,0.47183794]
[1739366424687,0.0001065,96427.0,96426.0,0.5041237]
[1739366424884,0.0001065,96427.0,96426.0,0.5869237]
[1739366426095,0.0001065,96427.0,96426.0,0.64912242]
[1739366426523,0.0001065,96427.0,96426.0,0.68014022]
[1739366427269,0.0001065,96427.0,96426.0,0.64212242]
[1739366427444,0.0001065,96427.0,96426.0,0.65814022]
[1739366427727,0.0001065,96427.0,96426.0,0.68014022]
[1739366427901,0.0001065,96427.0,96426.0,0.67314022]
[1739366430509,5e-07,96427.0,96426.0,0.6367237]
[1739366430707,0.00033497,96430.0,96429.0,0.388054]
[1739366430907,0.00033497,96430.0,96429.0,0.55516748]
[1739366432095,0.00033497,96430.0,96429.0,0.57229444]
[1739366432841,0.13275966,96466.0,96430.0,0.173]
[1739366433043,0.255517,96471.0,96454.0,0.15]
[1739366433044,0.155498,96465.0,96454.0,0.15]
[1739366433245,0.155498,96465.0,96456.0,0.15]
[1739366433657,0.155498,96465.0,96457.0,0.00501998]
[1739366434087,0.207325,96467.0,96457.0,0.00501998]
[1739366434405,0.155498,96464.0,96457.0,0.00501998]
[1739366434611,0.155498,96464.0,96458.0,0.00125866]
[1739366434861,0.207325,96467.0,96458.0,0.00125866]
[1739366435104,0.155498,96464.0,96458.0,0.00125866]
[1739366435294,0.155495,96466.0,96458.0,0.00125866]
[1739366435702,0.207318,96470.0,96458.0,0.00125866]
[1739366435863,0.155496,96466.0,96458.0,0.00125866]
[1739366436065,0.155492,96468.0,96458.0,0.00125866]
[1739366436266,0.04833226,96471.0,96458.0,0.00825866]
[1739366436461,0.04833226,96471.0,96458.0,0.15825866]
[1739366436709,0.04833226,96471.0,96458.0,0.31376566]
[1739366436710,0.155488,96470.0,96458.0,0.31376566]
[1739366437310,0.207318,96470.0,96458.0,0.00825866]
[1739366437508,0.155499,96464.0,96457.0,0.00775253]
[1739366437648,0.155499,96464.0,96458.0,0.009]
[1739366438055,0.155499,96464.0,96459.0,0.00125651]
[1739366438277,0.155499,96464.0,96456.0,0.15775253]
[1739366438479,0.082,96470.0,96458.0,0.005]
[1739366438661,0.207329,96465.0,96458.0,0.005]
[1739366438881,0.155504,96460.0,96458.0,0.002]
[1739366439091,0.155501,96462.0,96458.0,0.005]
[1739366439288,0.155501,96462.0,96459.0,0.01202238]
[1739366439527,0.0001065,96466.0,96459.0,0.01202238]
[1739366439704,0.282004,96460.0,96459.0,0.007]
[1739366440515,0.15552,96450.0,96449.0,0.0077385]
[1739366441470,0.15552,96450.0,96439.0,0.1632755]
[1739366441645,0.207354,96454.0,96439.0,0.1632755]
[1739366441646,0.155524,96448.0,96439.0,0.1632755]
[1739366441852,0.155524,96448.0,96419.0,0.08334419]
[1739366441853,0.01,96440.0,96425.0,0.00022365]
[1739366442022,0.13879145,96447.0,96425.0,0.00022365]
[1739366442023,0.290953,96430.0,96425.0,0.00022365]
[1739366442230,0.280953,96430.0,96425.0,0.00022365]
[1739366443843,0.280953,96430.0,96429.0,0.01022365]
[1739366444285,0.280953,96430.0,96429.0,0.00022365]
[1739366444691,0.280953,96430.0,96429.0,0.00122365]
[1739366445199,0.280953,96430.0,96429.0,0.00022365]
[1739366445573,0.280953,96430.0,96429.0,0.00122365]
[1739366446739,0.280953,96430.0,96429.0,0.00022365]
[1739366447193,0.280953,96430.0,96429.0,0.00122365]
[1739366447722,0.280953,96430.0,96429.0,0.00022365]
[1739366447886,0.280953,96430.0,96429.0,0.00122365]
[1739366448954,0.202353,96430.0,96429.0,0.00122365]
[1739366449574,0.0468,96430.0,96429.0,0.00122365]
[1739366450045,0.0761,96436.0,96429.0,0.00022365]
[1739366450184,0.155546,96435.0,96429.0,0.00022365]
[1739366450980,0.20739,96437.0,96429.0,0.00022365]
[1739366451092,0.155543,96436.0,96429.0,0.00022365]
[1739366451299,0.155543,96437.0,96429.0,0.00022365]
[1739366451746,0.155543,96437.0,96429.0,0.00122365]
[1739366452390,0.0001065,96439.0,96429.0,0.00122365]
[1739366452596,0.2074915,96439.0,96429.0,0.00122365]
[1739366452769,0.155542,96437.0,96429.0,0.00122365]
[1739366453167,0.155542,96437.0,96429.0,0.00022365]
[1739366453467,0.207387,96438.0,96429.0,0.00122365]
[1739366453645,0.155545,96435.0,96429.0,0.00122365]
[1739366454035,0.0001065,96439.0,96429.0,0.00122365]
[1739366454453,0.0001065,96439.0,96429.0,0.00022365]
[1739366455079,0.155545,96435.0,96430.0,0.00978849]
[1739366455502,0.155551,96431.0,96430.0,0.00978849]
[1739366455845,0.0001065,96439.0,96429.0,0.00122365]
[1739366456046,0.155553,96430.0,96429.0,0.00122365]
[1739366456491,0.155553,96430.0,96429.0,0.00222365]
[1739366456887,0.155553,96430.0,96429.0,0.00022365]
[1739366462469,0.155551,96431.0,96429.0,0.00022365]
[1739366462677,0.155548,96434.0,96429.0,0.00022365]
[1739366463059,0.0001065,96439.0,96429.0,0.00022365]
[1739366463270,0.0001065,96439.0,96430.0,0.00849463]
[1739366463471,0.0001065,96439.0,96430.0,0.21589663]
[1739366463829,0.0001065,96439.0,96435.0,0.155544]
[1739366464203,0.0001065,96439.0,96436.0,0.0084973]
[1739366464607,0.0001065,96439.0,96429.0,0.00022365]
[1739366464743,0.155541,96438.0,96437.0,0.00849774]
[1739366464946,0.155541,96438.0,96429.0,0.00022365]
[1739366464947,0.0001065,96439.0,96429.0,0.00022365]
[1739366465149,0.2074925,96439.0,96429.0,0.00022365]
[1739366465363,0.155547,96434.0,96430.0,0.00979984]
[1739366465819,0.207387,96438.0,96430.0,0.00979984]
[1739366466226,0.155548,96433.0,96430.0,0.00979984]
[1739366466605,0.155548,96433.0,96429.0,0.00022365]
[1739366467030,0.155548,96433.0,96430.0,0.00848104]
[1739366467751,0.207387,96438.0,96430.0,0.00848104]
[1739366468243,0.0001065,96439.0,96430.0,0.00848104]
[1739366468460,0.155547,96434.0,96429.0,0.00022365]
[1739366468661,0.0001065,96439.0,96430.0,0.00848104]
[1739366468857,0.0001065,96439.0,96429.0,0.00022365]
[1739366468858,0.207387,96438.0,96429.0,0.00022365]
[1739366469535,0.207394,96435.0,96429.0,0.00022365]
[1739366469911,0.155546,96434.0,96429.0,0.00022365]
[1739366470248,0.0001065,96439.0,96430.0,0.00848104]
[1739366471069,0.0001065,96439.0,96430.0,0.16403404]
[1739366471403,0.0001065,96439.0,96431.0,0.207402]
[1739366471620,0.0001065,96439.0,96432.0,0.2074]
[1739366471834,0.0001065,96439.0,96438.0,0.15554]
[1739366472275,0.0001065,96439.0,96438.0,0.16402459]
[1739366473069,0.0001065,96439.0,96438.0,0.41652824]
[1739366473289,0.0001065,96439.0,96438.0,0.42352824]
[1739366473531,0.0001065,96439.0,96438.0,0.43128395]
[1739366473961,0.0001065,96439.0,96438.0,0.42728395]
[1739366474585,0.0001065,96439.0,96438.0,0.50458395]
[1739366474714,0.0001065,96439.0,96438.0,0.50558395]
[1739366474919,0.0001065,96439.0,96438.0,0.50658395]
[1739366475118,0.0001065,96439.0,96438.0,0.50558395]
[1739366475535,0.0001065,96439.0,96438.0,0.51258395]
[1739366475878,0.0001065,96439.0,96438.0,0.50158395]
[1739366476078,0.0001065,96439.0,96438.0,0.50858395]
[1739366476289,0.0001065,96439.0,96438.0,0.51958395]
[1739366476500,0.0001065,96439.0,96438.0,0.54258395]
[1739366476698,0.0001065,96439.0,96438.0,0.53158395]
[1739366477055,0.0001065,96439.0,96438.0,0.54658395]
[1739366478781,0.0001065,96439.0,96438.0,0.59418395]
[1739366485837,0.0001065,96439.0,96438.0,0.57984781]
[1739366486905,0.0001065,96439.0,96438.0,0.57140781]
[1739366487260,0.0001065,96439.0,96438.0,0.57984781]
[1739366488231,0.0001065,96439.0,96438.0,0.55784781]
[1739366488397,0.0001065,96439.0,96438.0,0.57984781]
[1739366489189,0.0001065,96439.0,96438.0,0.57284781]
[1739366489383,0.0001065,96439.0,96438.0,0.57984781]
[1739366489566,0.0001065,96439.0,96438.0,0.56484781]
[1739366490166,0.0001065,96439.0,96438.0,0.57984781]
[1739366491961,0.0001065,96439.0,96438.0,0.57980781]
[1739366494893,0.0001065,96439.0,96438.0,0.56480781]
[1739366495088,0.0001065,96439.0,96438.0,0.55780781]
[1739366495292,0.0001065,96439.0,96438.0,0.57280781]
[1739366495635,0.0001065,96439.0,96438.0,0.57980781]
[1739366496274,0.0001065,96439.0,96438.0,0.60280781]
[1739366498340,0.0001065,96439.0,96438.0,0.58780781]
[1739366498785,0.0001065,96439.0,96438.0,0.60280781]
[1739366499342,0.0001065,96439.0,96438.0,0.59580781]
[1739366499546,0.0001065,96439.0,96438.0,0.58080781]
[1739366500879,0.0001065,96439.0,96438.0,0.59580781]
[1739366501298,0.0001065,96439.0,96438.0,0.58080781]
[1739366501531,0.0001065,96439.0,96438.0,0.58780781]
[1739366501651,0.0001065,96439.0,96438.0,0.59580781]
[1739366502057,0.0001065,96439.0,96438.0,0.60410947]
[1739366503357,0.0001065,96439.0,96438.0,0.55650947]
[1739366508605,0.0001065,96439.0,96438.0,0.44780947]
[1739366508806,0.0001065,96439.0,96438.0,0.03976582]
[1739366509867,0.0001065,96439.0,96438.0,0.02297957]
[1739366510112,0.0768065,96439.0,96438.0,0.0211034]
[1739366510325,0.2323445,96439.0,96438.0,0.0211034]
[1739366510534,0.2323445,96439.0,96438.0,0.0321034]
[1739366510758,0.2323445,96439.0,96438.0,0.02397957]
[1739366510938,0.2323445,96439.0,96438.0,0.00522386]
[1739366511385,0.2323445,96439.0,96438.0,0.01522386]
[1739366511600,0.2323445,96439.0,96438.0,0.01022386]
[1739366511811,0.2323445,96439.0,96438.0,0.01422386]
[1739366512936,0.0768065,96439.0,96438.0,0.01422386]
[1739366513874,0.0768065,96439.0,96438.0,0.16976386]
[1739366514120,0.0768065,96439.0,96438.0,0.17855349]
[1739366514358,0.0768065,96439.0,96438.0,0.02301349]
[1739366514620,0.0768065,96439.0,96438.0,0.17855349]
[1739366516122,0.0001065,96439.0,96438.0,0.17855349]
[1739366517810,0.0001065,96439.0,96438.0,0.17909676]
[1739366518106,0.0001065,96439.0,96438.0,0.16509676]
[1739366518574,0.0001065,96439.0,96438.0,0.16909676]
[1739366518933,0.0001065,96439.0,96438.0,0.17809676]
[1739366519135,0.0001065,96439.0,96438.0,0.17409676]
[1739366519562,0.0001065,96439.0,96438.0,0.18009676]
[1739366519919,0.0001065,96439.0,96438.0,0.26193546]
[1739366520124,0.0001065,96439.0,96438.0,0.26242424]
[1739366520344,0.0001065,96439.0,96438.0,0.27342424]
[1739366520734,0.0001065,96439.0,96438.0,0.52592789]
[1739366520958,0.0001065,96439.0,96438.0,0.55592789]
[1739366521145,0.0001065,96439.0,96438.0,0.57092789]
[1739366521450,0.0001065,96439.0,96438.0,0.57792789]
[1739366521842,0.0001065,96439.0,96438.0,0.56292789]
[1739366522158,0.0001065,96439.0,96438.0,0.55592789]
[1739366523011,0.0001065,96439.0,96438.0,0.56076903]
[1739366523226,0.0001065,96439.0,96438.0,0.57730159]
[1739366524187,0.0001065,96439.0,96438.0,0.57030159]
[1739366524646,0.0001065,96439.0,96438.0,0.57730159]
[1739366524821,0.0001065,96439.0,96438.0,0.57030159]
[1739366525534,0.0001065,96439.0,96438.0,0.60030159]
[1739366530059,0.0001065,96439.0,96438.0,0.58530159]
[1739366530463,0.0001065,96439.0,96438.0,0.57830159]
[1739366530941,0.0001065,96439.0,96438.0,0.60030159]
[1739366531422,0.0001065,96439.0,96438.0,0.58530159]
[1739366531621,0.0001065,96439.0,96438.0,0.60030159]
[1739366534874,0.0001065,96439.0,96438.0,0.59766095]
[1739366538299,0.0001065,96439.0,96438.0,0.57566095]
[1739366538511,0.0001065,96439.0,96438.0,0.58266095]
[1739366539288,0.0001065,96439.0,96438.0,0.57566095]
[1739366540147,0.0001065,96439.0,96438.0,0.59066095]
[1739366540679,0.0001065,96439.0,96438.0,0.58266095]
[1739366540854,0.0001065,96439.0,96438.0,0.59766095]
[1739366543408,0.0001065,96439.0,96438.0,0.58266095]
[1739366543593,0.0001065,96439.0,96438.0,0.59766095]
[1739366544005,0.0001065,96439.0,96438.0,0.58266095]
[1739366544348,0.0001065,96439.0,96438.0,0.59766095]
[1739366545142,0.0001065,96439.0,96438.0,0.58992225]
[1739366548119,0.0001065,96439.0,96438.0,0.57492225]
[1739366548318,0.0001065,96439.0,96438.0,0.56792225]
[1739366548805,5e-07,96439.0,96438.0,2.81863059]
[1739366548954,0.0001065,96466.0,96465.0,0.385496]
[1739366549154,0.00023874,96466.0,96465.0,0.51099965]
[1739366549320,0.00023874,96466.0,96465.0,0.41451256]
[1739366549521,0.00023874,96466.0,96465.0,0.31200891]
[1739366550527,0.00023874,96466.0,96465.0,0.32700891]
[1739366551075,0.00023874,96466.0,96465.0,0.42951256]
[1739366551249,0.00023874,96466.0,96465.0,0.49091256]
[1739366551438,0.00023874,96466.0,96465.0,0.51011256]
[1739366551638,0.00023874,96466.0,96465.0,0.53311256]
[1739366552110,0.00023874,96466.0,96465.0,0.53811256]
[1739366552319,1.29959375,96500.0,96466.0,0.173]
[1739366552539,1.29959375,96500.0,96480.0,0.14460777]
[1739366552540,0.155448,96495.0,96480.0,0.14460777]
[1739366552720,5.483e-05,96496.0,96487.0,0.155461]
[1739366552930,5.483e-05,96496.0,96480.0,0.14460777]
[1739366553099,5.483e-05,96496.0,96489.0,0.155457]
[1739366553306,5.483e-05,96496.0,96490.0,0.155456]
[1739366553886,5.483e-05,96496.0,96491.0,0.155454]
[1739366554229,0.00105483,96496.0,96491.0,0.155454]
[1739366554465,0.00105483,96496.0,96493.0,0.207268]
[1739366554665,0.00305483,96496.0,96495.0,0.155448]
[1739366555067,0.00305483,96496.0,96495.0,0.15765921]
[1739366555283,0.00305483,96496.0,96495.0,0.26016286]
[1739366555478,0.00405483,96496.0,96495.0,0.26016286]
[1739366555801,0.00105483,96496.0,96495.0,0.26016286]
[1739366556206,0.00105483,96496.0,96495.0,0.33996286]
[1739366556687,5.483e-05,96496.0,96495.0,0.33996286]
[1739366556883,5.483e-05,96496.0,96495.0,0.00521121]
[1739366557264,5.483e-05,96496.0,96493.0,0.15545]
[1739366557461,5.483e-05,96496.0,96495.0,0.016]
[1739366557662,5.483e-05,96496.0,96495.0,0.01]
[1739366558202,5.483e-05,96496.0,96495.0,0.02145814]
[1739366558405,5.483e-05,96496.0,96495.0,0.01645814]
[1739366558607,5.483e-05,96496.0,96495.0,0.01]
[1739366558805,5.483e-05,96496.0,96495.0,0.02045814]
[1739366559010,5.483e-05,96496.0,96495.0,0.01045814]
[1739366559422,5.483e-05,96496.0,96495.0,0.17890614]
[1739366559736,5.483e-05,96496.0,96495.0,0.16590614]
[1739366559955,5.483e-05,96496.0,96495.0,0.26840979]
[1739366560139,5.483e-05,96496.0,96495.0,0.45140979]
[1739366560437,5.483e-05,96496.0,96495.0,0.44740979]
[1739366560794,5.483e-05,96496.0,96495.0,0.44840979]
[1739366561006,5.483e-05,96496.0,96495.0,0.43740979]
[1739366561204,5.483e-05,96496.0,96495.0,0.51950979]
[1739366561404,5.483e-05,96496.0,96495.0,0.57430979]
[1739366562275,5.483e-05,96496.0,96495.0,0.58930979]
[1739366562965,5.483e-05,96496.0,96495.0,0.56730979]
[1739366563117,5.483e-05,96496.0,96495.0,0.58230979]
[1739366563318,5.483e-05,96496.0,96495.0,0.58930979]
[1739366563504,5.483e-05,96496.0,96495.0,0.56730979]
[1739366563760,8.3e-07,96496.0,96495.0,0.56730979]
[1739366563938,1.07161408,96500.0,96498.0,0.15]
[1739366564156,1.03016408,96500.0,96499.0,2.27381771]
[1739366564369,1.03016408,96500.0,96499.0,1.79322965]
[1739366564572,0.98871408,96500.0,96499.0,1.68586765]
[1739366564806,0.92653908,96500.0,96499.0,1.68586765]
[1739366565360,0.92653908,96500.0,96499.0,1.710635]
[1739366565705,0.92653908,96500.0,96499.0,1.720635]
[1739366565706,0.69481408,96500.0,96499.0,1.720635]
[1739366566478,0.65937717,96500.0,96499.0,2.278435]
[1739366566688,0.49837717,96500.0,96499.0,2.31432013]
[1739366566859,0.45262715,96500.0,96499.0,2.263435]
[1739366567065,0.44892448,96500.0,96499.0,2.263435]
[1739366567267,0.34756805,96500.0,96499.0,2.29651027]
[1739366567468,0.08334419,96556.0,96532.0,0.328388]
[1739366567674,0.08334419,96580.0,96535.0,0.155384]
[1739366567874,0.0794,96583.0,96548.0,0.328363]
[1739366568054,0.0794,96583.0,96548.0,0.43086665]
[1739366568261,0.207264,96589.0,96588.0,0.155298]
[1739366568262,0.0002,96589.0,96588.0,0.155298]
[1739366568515,0.00025485,96589.0,96588.0,0.163458]
[1739366568684,0.00025485,96589.0,96588.0,0.27125906]
[1739366568901,0.00025485,96589.0,96588.0,0.26206388]
[1739366569300,0.00025485,96589.0,96588.0,0.11496588]
[1739366569540,0.00025485,96589.0,96588.0,0.10976588]
[1739366569751,0.00025485,96589.0,96588.0,0.00726223]
[1739366569933,0.00025485,96589.0,96588.0,0.00426223]
[1739366570305,0.15555185,96589.0,96588.0,0.012]
[1739366570713,0.00025485,96589.0,96588.0,0.009]
[1739366570985,0.00025485,96589.0,96588.0,0.168298]
[1739366571184,0.00025485,96589.0,96588.0,0.27183688]
[1739366571398,0.00025485,96589.0,96588.0,0.27080165]
[1739366571643,0.00025485,96589.0,96588.0,0.26180165]
[1739366572049,0.00025485,96589.0,96588.0,0.27280165]
[1739366572408,0.00025485,96589.0,96588.0,3.11714465]
[1739366572617,0.0001065,96595.0,96594.0,0.315289]
[1739366572887,0.0001065,96595.0,96594.0,0.348409]
[1739366573075,7e-05,96614.0,96594.0,0.348409]
[1739366573076,7e-05,96614.0,96610.0,0.305263]
[1739366573287,7e-05,96614.0,96610.0,0.48380981]
[1739366573500,0.01445088,96611.0,96610.0,0.82871983]
[1739366573718,0.01445088,96611.0,96610.0,0.82148581]
[1739366574140,0.01445088,96611.0,96610.0,0.80018781]
[1739366574334,7e-05,96614.0,96610.0,0.80018781]
[1739366574335,7e-05,96614.0,96613.0,0.305258]
[1739366574533,7e-05,96614.0,96613.0,0.316978]
[1739366574740,7e-05,96614.0,96613.0,0.62893607]
[1739366574953,7e-05,96614.0,96613.0,0.65193607]
[1739366575376,7e-05,96614.0,96613.0,0.88398972]
[1739366575584,7e-05,96614.0,96613.0,0.56098972]
[1739366575789,7e-05,96614.0,96613.0,0.86098972]
[1739366575996,7e-05,96614.0,96613.0,0.87598972]
[1739366576401,7e-05,96614.0,96613.0,0.86102972]
[1739366576627,7e-05,96614.0,96613.0,0.88402972]
[1739366576829,7e-05,96614.0,96613.0,0.90902972]
[1739366577364,7e-05,96614.0,96613.0,0.91602972]
[1739366577563,7e-05,96614.0,96613.0,0.89726972]
[1739366577767,7e-05,96614.0,96613.0,0.98648972]
[1739366578174,0.0002,96629.0,96627.0,0.3]
[1739366578386,0.0752,96698.0,96627.0,0.3]
[1739366578387,0.04392819,96698.0,96656.0,0.01]
[1739366578584,0.155123,96697.0,96681.0,0.15]
[1739366578805,0.155123,96697.0,96666.0,0.10250365]
[1739366578806,0.155123,96697.0,96682.0,0.00181033]
[1739366579055,0.155123,96697.0,96660.0,0.14460777]
[1739366579056,0.01,96695.0,96640.0,0.14460777]
[1739366579261,0.155177,96664.0,96643.0,0.155209]
[1739366579445,0.00044079,96697.0,96640.0,0.14460777]
[1739366579446,0.155147,96682.0,96656.0,0.08334419]
[1739366579620,0.01,96717.0,96664.0,0.155175]
[1739366579621,0.206817,96704.0,96664.0,0.155175]
[1739366579820,0.155147,96682.0,96681.0,0.004]
[1739366580336,0.0001,96700.0,96670.0,0.14460777]
[1739366580538,0.00044051,96682.0,96669.0,0.155168]
[1739366580739,0.00044051,96682.0,96671.0,0.00844236]
[1739366580904,0.00044051,96682.0,96681.0,0.003]
[1739366581107,0.155149,96681.0,96671.0,0.00844236]
[1739366581303,0.155152,96679.0,96663.0,0.155177]
[1739366581503,0.00044051,96682.0,96672.0,0.00843637]
[1739366581707,0.00044051,96682.0,96656.0,0.011]
[1739366581908,0.0107938,96682.0,96657.0,0.10250365]
[1739366582154,0.155175,96665.0,96657.0,0.11010608]
[1739366582327,0.00044051,96682.0,96657.0,0.11010608]
[1739366582328,0.155174,96666.0,96657.0,0.11010608]
[1739366582533,0.00044051,96682.0,96666.0,0.206897]
[1739366582739,0.00044051,96682.0,96681.0,0.155149]
[1739366582943,0.00044051,96682.0,96681.0,0.25868669]
[1739366583139,0.00044051,96682.0,96681.0,0.26339945]
[1739366583345,0.02049417,96713.0,96691.0,0.3]
[1739366583547,0.01445091,96707.0,96706.0,0.418109]
[1739366583817,0.01445091,96707.0,96706.0,3.44828265]
[1739366584012,0.01406327,96744.0,96706.0,3.44828265]
[1739366584013,0.00299379,96744.0,96738.0,0.155057]
[1739366584221,0.00299379,96744.0,96731.0,0.00103357]
[1739366584421,0.155054,96741.0,96739.0,0.00594534]
[1739366584626,0.155054,96741.0,96732.0,0.10250365]
[1739366584627,0.00304854,96744.0,96732.0,0.10250365]
[1739366584828,0.00304854,96744.0,96733.0,0.00103366]
[1739366584975,0.00304854,96744.0,96734.0,0.10250365]
[1739366585159,0.00304854,96744.0,96735.0,0.0010336]
[1739366585389,0.00304854,96744.0,96736.0,0.10250365]
[1739366585723,0.00304854,96744.0,96733.0,0.00764395]
[1739366585724,0.155058,96738.0,96737.0,0.00169271]
[1739366586084,0.206735,96742.0,96703.0,0.206818]
[1739366586288,0.155059,96738.0,96728.0,0.08334419]
[1739366586559,0.00404854,96744.0,96735.0,0.009]
[1739366586753,0.00404854,96744.0,96736.0,0.10250365]
[1739366586915,0.00304854,96744.0,96736.0,0.1087084]
[1739366587120,0.00304854,96744.0,96737.0,0.005]
[1739366587307,0.001,96742.0,96738.0,0.10250365]
[1739366587507,0.001,96742.0,96740.0,0.155054]
[1739366587820,0.001,96742.0,96741.0,0.0062013]
[1739366588016,0.00090832,96742.0,96741.0,0.0062013]
[1739366588219,0.155057,96738.0,96737.0,0.003]
[1739366588453,0.00090832,96742.0,96738.0,0.206743]
[1739366588647,0.00304854,96744.0,96739.0,0.10869993]
[1739366588855,0.00404854,96744.0,96739.0,0.10869993]
[1739366589067,0.00404854,96744.0,96739.0,0.00619628]
[1739366589267,0.155053,96741.0,96740.0,0.0016863]
[1739366589442,0.2941462,96741.0,96740.0,0.0016863]
[1739366589647,0.155117,96701.0,96700.0,0.08334419]
[1739366589877,0.155117,96701.0,96700.0,0.09105391]
[1739366590238,0.201417,96701.0,96700.0,0.00770972]
[1739366590379,0.0463,96701.0,96700.0,0.00770972]
[1739366590580,0.0482,96718.0,96692.0,0.15513]
[1739366590781,0.0482,96718.0,96669.0,0.08974512]
[1739366590782,0.21570054,96710.0,96669.0,0.08974512]
[1739366591005,0.206817,96704.0,96693.0,0.00641409]
[1739366591326,0.155132,96692.0,96680.0,0.155149]
[1739366591503,0.0001063,96701.0,96674.0,0.00103423]
[1739366591661,0.206827,96699.0,96681.0,0.00700817]
[1739366591867,0.155125,96697.0,96687.0,0.155139]
[1739366592071,0.155125,96697.0,96683.0,0.206861]
[1739366592273,0.0081063,96701.0,96692.0,0.15513]
[1739366592585,0.0081063,96701.0,96692.0,0.25763365]
[1739366592586,0.0001063,96701.0,96692.0,0.25763365]
[1739366592785,0.206805,96710.0,96693.0,0.00697421]
[1739366592991,0.0208114,96743.0,96693.0,0.00697421]
[1739366592992,0.206791,96716.0,96693.0,0.00697421]
[1739366593211,0.155119,96700.0,96693.0,0.00697421]
[1739366593837,0.15,96719.0,96693.0,0.00697421]
[1739366594041,0.155125,96696.0,96692.0,0.10750365]
[1739366594176,0.206795,96714.0,96693.0,0.00500991]
[1739366594177,0.155128,96694.0,96693.0,0.00500991]
[1739366594382,0.155128,96694.0,96692.0,0.005]
[1739366594942,0.155131,96693.0,96688.0,0.001975]
[1739366595146,0.155132,96692.0,96688.0,0.001975]
[1739366595352,7e-05,96745.0,96693.0,0.15]
[1739366595526,0.15507,96731.0,96714.0,0.155096]
[1739366595729,7e-05,96745.0,96715.0,0.10250365]
[1739366595730,0.206755,96733.0,96715.0,0.10250365]
[1739366595926,7e-05,96745.0,96715.0,0.10749324]
[1739366596131,7e-05,96745.0,96715.0,0.00498959]
[1739366596332,7e-05,96745.0,96716.0,0.10250365]
[1739366596333,0.155069,96731.0,96716.0,0.10250365]
[1739366596509,0.155069,96731.0,96697.0,0.00103392]
[1739366596691,0.155071,96730.0,96720.0,0.155086]
[1739366597053,0.155071,96730.0,96714.0,0.006]
[1739366597054,0.10250365,96743.0,96721.0,0.0049373]
[1739366597208,0.10250365,96743.0,96720.0,0.155086]
[1739366597209,0.155071,96730.0,96720.0,0.155086]
[1739366597410,7e-05,96745.0,96714.0,0.006]
[1739366597411,7e-05,96745.0,96727.0,0.155074]
[1739366597734,7e-05,96745.0,96721.0,0.0049373]
[1739366597911,0.155071,96730.0,96728.0,0.00493247]
[1739366598115,0.001,96731.0,96688.0,0.208824]
[1739366598339,0.206797,96713.0,96694.0,0.206838]
[1739366598497,0.0473,96714.0,96707.0,0.00376033]
[1739366598699,0.155106,96708.0,96698.0,0.155121]
[1739366599064,0.155104,96709.0,96708.0,0.00375964]
[1739366599263,0.155115,96702.0,96695.0,0.10250365]
[1739366599585,0.155116,96702.0,96696.0,0.00376792]
[1739366599723,0.206815,96705.0,96696.0,0.00376792]
[1739366599927,0.155108,96707.0,96698.0,0.155121]
[1739366600146,0.0473,96714.0,96693.0,5.481e-05]
[1739366600344,0.155112,96705.0,96699.0,0.00376585]
[1739366600505,0.206801,96711.0,96699.0,0.1062695]
[1739366600705,0.155108,96707.0,96699.0,0.25762265]
[1739366600955,0.155112,96704.0,96700.0,0.00376516]
[1739366601157,0.0473,96714.0,96700.0,0.00376516]
[1739366601158,0.155115,96703.0,96700.0,0.00376516]
[1739366601536,0.15512,96699.0,96698.0,0.001]
[1739366602269,0.2068,96712.0,96693.0,5.481e-05]
[1739366602594,0.155128,96694.0,96693.0,5.481e-05]
[1739366603769,0.155128,96694.0,96693.0,0.00405481]
[1739366604213,0.155128,96694.0,96693.0,5.481e-05]
[1739366604790,0.26763165,96694.0,96693.0,5.481e-05]
[1739366605141,0.25763165,96694.0,96693.0,5.481e-05]
[1739366605715,0.25763165,96694.0,96693.0,0.00905481]
[1739366605914,0.25763165,96694.0,96693.0,0.00605481]
[1739366606317,0.25763165,96694.0,96693.0,5.481e-05]
[1739366606887,0.33603165,96694.0,96693.0,5.481e-05]
[1739366607085,0.30303165,96694.0,96693.0,5.481e-05]
[1739366607977,0.33603165,96694.0,96693.0,5.481e-05]
[1739366608197,0.41273165,96694.0,96693.0,5.481e-05]
[1739366608668,0.16,96713.0,96693.0,5.481e-05]
[1739366608908,0.15512,96700.0,96693.0,5.481e-05]
[1739366609184,0.15512,96699.0,96693.0,5.481e-05]
[1739366609387,0.155128,96694.0,96693.0,5.481e-05]
[1739366609696,0.167128,96694.0,96693.0,0.00105481]
[1739366609900,0.167128,96694.0,96693.0,0.00205481]
[1739366610130,0.167128,96694.0,96693.0,0.00105481]
[1739366610327,0.167128,96694.0,96693.0,0.00205481]
[1739366610849,0.167128,96694.0,96693.0,0.00105481]
[1739366611069,0.15502904,96694.0,96693.0,5.481e-05]
[1739366611495,0.155124,96697.0,96693.0,0.00505481]
[1739366611696,0.206803,96711.0,96693.0,0.00505481]
[1739366611697,0.206802,96711.0,96693.0,0.00505481]
[1739366611857,0.206802,96711.0,96693.0,5.481e-05]
[1739366612064,0.0484,96731.0,96694.0,0.10250365]
[1739366612218,0.0002,96749.0,96700.0,0.21570054]
[1739366612424,0.15508,96724.0,96715.0,0.206791]
[1739366612623,0.10250365,96743.0,96716.0,0.00409917]
[1739366612624,0.21570054,96730.0,96716.0,0.00409917]